[Event "Catalan Youth Championship 2024"]
[Site "Cambrils"]
[Date "2024.03.28"]
[Round "9.2"]
[White "Garcia Corpas, Nicolas"]
[Black "Perez Monakhov, Andres"]
[Result "1/2-1/2"]
[ECO "B06"]
[WhiteElo "1679"]
[BlackElo "1765"]
[Annotator "NA RC"]
[PlyCount "105"]
[EventDate "2024.03.13"]
[EventType "swiss"]
[EventCountry "ESP"]
[SourceTitle "playchess.com"]
[Source "ChessBase"]
[SourceQuality "1"]
[TimeControl "5400+30"]

1. e4 {[%emt 0:00:03]} g6 {[%emt 0:00:19]} 2. d4 {[%emt 0:00:15]} Bg7 {[%emt 0:00:09]} 3. Nc3 {[%emt 0:00:15]} d6 {[%emt 0:00:16]} 4. Be3 {[%emt 0:00:47]} a6 {[%emt 0:00:21]} 5. Qd2 {[%emt 0:00:53]} b5 {[%emt 0:00:21]} 6. Bd3 {[%emt 0:00:48]} Bb7 {[%emt 0:00:39]} 7. Nf3 {[%emt 0:07:21]} Nd7 {[%emt 0:00:58]} 8. O-O {[%emt 0:01:37]} Ngf6 {[%emt 0:04:35]} 9. a3 {[%emt 0:06:18]} e5 {[%emt 0:03:06]} 10. dxe5 {[%emt 0:02:30]} dxe5 {[%emt 0:00:12]} 11. b4 {[%emt 0:06:42]} h5 {[%emt 0:02:16]} 12. Bg5 {[%emt 1:09:01]} O-O {[%emt 0:02:09]} 13. Rad1 {[%emt 0:00:00]} Qe7 {[%emt 0:02:28]} 14. Qe3 {[%emt 0:00:00]} Rfe8 {[%emt 0:04:28]} 15. h3 {[%emt 0:00:00]} Rad8 {[%emt 1:15:43]} 16. Ne2 {[%emt 0:00:00]} c5 {[%emt 0:00:00]} 17. c3 {[%emt 0:00:00]} cxb4 {[%emt 0:00:00]} 18. cxb4 {[%emt 0:00:00]} Rc8 {[%emt 0:00:00]} 19. Rc1 {[%emt 0:00:00]} Red8 {[%emt 0:00:00]} 20. Rfd1 {[%emt 0:04:00]} Qe6 {[%emt 0:00:00]} 21. Ng3 {[%emt 0:00:00]} Qb3 {[%emt 0:00:00]} 22. Bb1 {[%emt 0:00:00]} Qxe3 {[%emt 0:00:00]} 23. Bxe3 {[%emt 0:00:00]} Rxc1 {[%emt 0:00:00]} 24. Rxc1 {[%emt 0:00:00]} Ne8 {[%emt 0:00:00]} 25. Rd1 {[%emt 0:00:00]} Bf6 {[%emt 0:00:00]} 26. Kf1 {[%emt 0:00:00]} Kf8 {[%emt 0:00:00]} 27. Ke2 {[%emt 0:00:00]} Ke7 {[%emt 0:00:00]} 28. h4 {[%emt 0:00:00]} Rc8 {[%emt 0:00:00]} 29. Ng5 {[%emt 0:00:00]} Bxg5 {[%emt 0:00:00]} 30. Bxg5+ {[%emt 0:00:00]} f6 {[%emt 0:00:00]} 31. Be3 {[%emt 0:00:00]} Nd6 {[%emt 0:00:00]} 32. f3 {[%emt 0:00:00]} Nc4 {[%emt 0:00:00]} 33. Rd3 {[%emt 0:00:00]} Nxe3 {[%emt 0:00:00]} 34. Kxe3 {[%emt 0:00:00]} Nb6 {[%emt 0:00:00]} 35. Ba2 {[%emt 0:00:00]} Rc2 {[%emt 0:00:00]} 36. Rd2 {[%emt 0:00:00]} Rc3+ {[%emt 0:00:37]} 37. Rd3 {[%emt 0:00:00]} Rc1 {[%emt 0:00:47]} 38. Ne2 {[%emt 0:00:00]} Rc2 {[%emt 0:05:07]} 39. Rd2 {[%emt 0:00:00]} Rxd2 {[%emt 0:01:21]} 40. Kxd2 {[%emt 0:00:00]} Bc8 {[%emt 0:00:12]} 41. Kd3 {[%emt 0:01:23]} Be6 {[%emt 0:00:18]} 42. Nc3 {[%emt 0:01:48]} Bxa2 {[%emt 0:00:14]} 43. Nxa2 {[%emt 0:00:09]} Nc4 {[%emt 0:00:05]} 44. a4 {[%emt 0:00:08]} Nb2+ {[%emt 0:00:06]} 45. Ke3 {[%emt 0:01:15]} Nxa4 {[%emt 0:00:21]} 46. g4 {[%emt 0:01:32]} Nb2 {[%emt 0:00:26]} 47. Nc3 {[%emt 0:00:17]} Nc4+ {[%emt 0:00:51]} 48. Kf2 {[%emt 0:00:43]} Nb6 {[%emt 0:00:20]} 49. Ke3 {[%emt 0:00:40]} Kd6 {[%emt 0:00:23]} 50. gxh5 {[%emt 0:03:02]} gxh5 {[%emt 0:00:11]} 51. f4 {[%emt 0:00:37]} Ke6 {[%emt 0:00:58]} 52. f5+ {[%emt 0:00:21]} Kd6 {[%emt 0:00:20]} 53. Kd3 {[%emt 0:04:35]} 1/2-1/2

[Event "Catalan Youth Championship 2024"]
[Site "Cambrils"]
[Date "2024.03.28"]
[Round "9.3"]
[White "Garcia Huerta, Joaquin Marc"]
[Black "Costache, Stefan"]
[Result "1/2-1/2"]
[ECO "B11"]
[WhiteElo "1617"]
[BlackElo "1461"]
[Annotator "NA RC"]
[PlyCount "68"]
[EventDate "2024.03.13"]
[EventType "swiss"]
[EventCountry "ESP"]
[SourceTitle "playchess.com"]
[Source "ChessBase"]
[SourceQuality "1"]
[TimeControl "5400+30"]

1. e4 {[%emt 0:00:06]} c6 {[%emt 0:00:09]} 2. Nc3 {[%emt 0:00:08]} d5 {[%emt 0:00:13]} 3. Qe2 {[%emt 0:00:14]} d4 {[%emt 0:03:02]} 4. Nd1 {[%emt 0:00:13]} e5 {[%emt 0:00:41]} 5. g3 {[%emt 0:02:17]} Bd6 {[%emt 0:00:49]} 6. Bg2 {[%emt 0:00:18]} Nf6 {[%emt 0:00:18]} 7. h3 {[%emt 0:01:11]} O-O {[%emt 0:02:02]} 8. d3 {[%emt 0:00:46]} h6 {[%emt 0:03:41]} 9. c3 {[%emt 0:02:53]} c5 {[%emt 0:04:45]} 10. Qc2 {[%emt 0:02:59]} Nc6 {[%emt 0:03:08]} 11. Ne2 {[%emt 0:01:46]} Be6 {[%emt 0:05:02]} 12. O-O {[%emt 0:00:43]} Rc8 {[%emt 0:00:18]} 13. f4 {[%emt 0:00:25]} dxc3 {[%emt 0:08:42]} 14. bxc3 {[%emt 0:00:24]} c4 {[%emt 0:00:42]} 15. d4 {[%emt 0:02:02]} exd4 {[%emt 0:05:56]} 16. cxd4 {[%emt 0:00:38]} Nxd4 {[%emt 0:04:57]} 17. Nxd4 {[%emt 1:21:57]} Bc5 {[%emt 0:00:13]} 18. Be3 {[%emt 0:00:00]} Bxd4 {[%emt 0:00:29]} 19. Bxd4 {[%emt 0:00:00]} Qxd4+ {[%emt 0:00:08]} 20. Nf2 {[%emt 0:00:00]} Nh5 {[%emt 0:11:51]} 21. f5 {[%emt 0:00:00]} Bd7 {[%emt 0:08:05]} 22. Rfd1 {[%emt 0:00:00]} Qe5 {[%emt 0:05:12]} 23. g4 {[%emt 0:00:00]} Nf4 {[%emt 0:07:54]} 24. Bf1 {[%emt 0:00:00]} Bc6 {[%emt 0:01:09]} 25. Rac1 {[%emt 0:00:00]} g5 {[%emt 0:03:13]} 26. fxg6 {[%emt 0:00:00]} fxg6 {[%emt 0:00:35]} 27. Bxc4+ {[%emt 0:00:00]} Kh7 {[%emt 0:01:28]} 28. Qb3 {[%emt 0:00:00]} Ba4 {[%emt 0:08:23]} 29. Qxa4 {[%emt 0:00:00]} Nxh3+ {[%emt 0:00:39]} 30. Nxh3 {[%emt 0:00:00]} Qg3+ {[%emt 0:00:13]} 31. Kh1 {[%emt 0:00:00]} Qxh3+ {[%emt 0:00:09]} 32. Kg1 {[%emt 0:00:00]} Qg3+ {[%emt 0:00:31]} 33. Kh1 {[%emt 0:00:00]} Qh3+ {[%emt 0:00:14]} 34. Kg1 {[%emt 0:00:00]} Qg3+ {[%emt 0:12:39]} 1/2-1/2

[Event "Catalan Youth Championship 2024"]
[Site "Cambrils"]
[Date "2024.03.28"]
[Round "9.5"]
[White "Tallada Serret, Gerard"]
[Black "Faixedas Climent, Pol"]
[Result "1-0"]
[ECO "C30"]
[WhiteElo "2085"]
[BlackElo "1703"]
[Annotator "RC"]
[PlyCount "71"]
[EventDate "2024.03.13"]
[EventType "swiss"]
[EventCountry "ESP"]
[SourceTitle "playchess.com"]
[Source "ChessBase"]
[SourceQuality "1"]
[TimeControl "5400+30"]

1. e4 {[%emt 0:00:03]} e5 {[%emt 0:00:01]} 2. Bc4 {[%emt 0:00:13]} Nf6 {[%emt 0:03:34]} 3. d3 {[%emt 0:00:07]} Bc5 {[%emt 0:04:48]} 4. Nc3 {[%emt 0:02:02]} Nc6 {[%emt 0:04:25]} 5. f4 {[%emt 0:01:35]} d6 {[%emt 0:05:40]} 6. Nf3 {[%emt 0:11:38]} Bd7 {[%emt 1:15:02]} 7. a3 {[%emt 0:03:51]} a6 {[%emt 0:00:00]} 8. f5 {[%emt 0:02:43]} h6 {[%emt 0:00:00]} 9. Qe2 {[%emt 0:05:55]} Nd4 {[%emt 0:00:00]} 10. Nxd4 {[%emt 0:00:29]} Bxd4 {[%emt 0:00:00]} 11. Nd5 {[%emt 0:07:39]} Bb5 {[%emt 0:00:00]} 12. Bb3 {[%emt 0:03:59]} Bc6 {[%emt 0:00:00]} 13. Nb4 {[%emt 0:03:16]} Bd7 {[%emt 0:00:00]} 14. c3 {[%emt 0:01:37]} Ba7 {[%emt 0:00:00]} 15. Be3 {[%emt 0:02:03]} Bxe3 {[%emt 0:00:00]} 16. Qxe3 {[%emt 0:00:06]} c5 {[%emt 0:00:00]} 17. Nd5 {[%emt 0:06:54]} Bc6 {[%emt 0:00:00]} 18. Nxf6+ {[%emt 0:05:56]} Qxf6 {[%emt 0:00:00]} 19. O-O {[%emt 0:00:27]} Rb8 {[%emt 0:00:00]} 20. Rad1 {[%emt 0:00:39]} b5 {[%emt 0:00:00]} 21. d4 {[%emt 0:02:15]} c4 {[%emt 0:00:00]} 22. Bc2 {[%emt 0:01:26]} O-O {[%emt 0:00:00]} 23. Rd2 {[%emt 0:03:16]} Rfe8 {[%emt 0:08:30]} 24. Qg3 {[%emt 0:05:49]} Rbd8 {[%emt 0:00:00]} 25. Rfd1 {[%emt 0:02:20]} Kh8 {[%emt 0:00:00]} 26. dxe5 {[%emt 0:03:48]} dxe5 {[%emt 0:00:00]} 27. Qe3 {[%emt 0:03:59]} Bb7 {[%emt 0:00:00]} 28. h3 {[%emt 0:03:30]} Kg8 {[%emt 0:00:00]} 29. a4 {[%emt 0:01:10]} Rxd2 {[%emt 0:00:00]} 30. Qxd2 {[%emt 0:00:10]} Qb6+ {[%emt 0:00:00]} 31. Kh2 {[%emt 0:01:03]} Bc6 {[%emt 0:00:00]} 32. f6 {[%emt 0:00:30]} Ba8 {[%emt 0:00:00]} 33. fxg7 {[%emt 0:00:53]} Qg6 {[%emt 0:00:00]} 34. Qd7 {[%emt 0:01:40]} Bc6 {[%emt 0:00:00]} 35. Qd6 {[%emt 0:05:55]} Re6 {[%emt 0:00:00]} 36. Qf8+ {[%emt 0:00:05]} 1-0

[Event "Catalan Youth Championship 2024"]
[Site "Cambrils"]
[Date "2024.03.28"]
[Round "9.6"]
[White "Hijarrubia Alvarez-Cuevas, Gonzalo"]
[Black "Linares Miralles, Jordi"]
[Result "1/2-1/2"]
[ECO "C45"]
[WhiteElo "1827"]
[BlackElo "1645"]
[Annotator "NA RC"]
[PlyCount "52"]
[EventDate "2024.03.13"]
[EventType "swiss"]
[EventCountry "ESP"]
[SourceTitle "playchess.com"]
[Source "ChessBase"]
[SourceQuality "1"]
[TimeControl "5400+30"]

1. e4 {[%emt 1:31:00]} e5 {[%emt 1:31:00]} 2. Nf3 {[%emt 0:00:30]} Nc6 {[%emt 0:00:30]} 3. d4 {[%emt 0:00:30]} exd4 {[%emt 0:00:30]} 4. Nxd4 {[%emt 0:00:30]} Qf6 {[%emt 0:00:30]} 5. Nb5 {[%emt 0:00:30]} Bc5 {[%emt 0:00:30]} 6. Qe2 {[%emt 0:00:30]} Bb6 {[%emt 0:00:30]} 7. N1c3 {[%emt 0:00:30]} Nge7 {[%emt 0:00:30]} 8. Be3 {[%emt 0:00:30]} Ba5 {[%emt 0:00:30]} 9. O-O-O {[%emt 0:00:30]} a6 {[%emt 0:00:30]} 10. Nd4 {[%emt 0:00:30]} Bxc3 {[%emt 0:00:30]} 11. bxc3 {[%emt 0:00:30]} d6 {[%emt 0:00:30]} 12. Nxc6 {[%emt 0:00:30]} Nxc6 {[%emt 0:00:30]} 13. Bd4 {[%emt 0:00:30]} Nxd4 {[%emt 0:00:30]} 14. cxd4 {[%emt 0:00:30]} b5 {[%emt 0:00:30]} 15. g3 {[%emt 0:00:30]} O-O {[%emt 0:00:30]} 16. Bg2 {[%emt 0:00:30]} Qe6 {[%emt 0:00:30]} 17. Kb1 {[%emt 0:00:30]} Re8 {[%emt 0:00:30]} 18. d5 {[%emt 0:00:30]} Qe7 {[%emt 0:00:30]} 19. f4 {[%emt 0:00:30]} Bf5 {[%emt 0:00:30]} 20. Rhe1 {[%emt 0:00:30]} Rad8 {[%emt 0:00:30]} 21. g4 {[%emt 0:00:30]} Bc8 {[%emt 0:00:30]} 22. g5 {[%emt 0:00:30]} f6 {[%emt 0:00:30]} 23. h4 {[%emt 0:00:30]} Qf7 {[%emt 0:00:30]} 24. Bf3 {[%emt 0:00:30]} fxg5 {[%emt 0:00:30]} 25. fxg5 {[%emt 0:00:30]} Re5 {[%emt 0:00:30]} 26. Qg2 {[%emt 0:00:30]} Rf8 {[%emt 0:00:30]} 1/2-1/2

[Event "Catalan Youth Championship 2024"]
[Site "Cambrils"]
[Date "2024.03.28"]
[Round "9.7"]
[White "Sahakyan, Aram A"]
[Black "Perez Vidal, Ian"]
[Result "0-1"]
[ECO "C45"]
[WhiteElo "1639"]
[BlackElo "1828"]
[Annotator "NA RC"]
[PlyCount "122"]
[EventDate "2024.03.13"]
[EventType "swiss"]
[EventCountry "ESP"]
[SourceTitle "playchess.com"]
[Source "ChessBase"]
[SourceQuality "1"]
[TimeControl "5400+30"]

1. e4 {[%emt 0:00:15]} e5 {[%emt 0:00:25]} 2. Nf3 {[%emt 0:00:08]} Nc6 {[%emt 0:00:11]} 3. d4 {[%emt 0:00:12]} exd4 {[%emt 0:00:08]} 4. Nxd4 {[%emt 0:00:06]} Qf6 {[%emt 0:00:25]} 5. c3 {[%emt 0:01:23]} Bc5 {[%emt 0:00:35]} 6. Be3 {[%emt 0:00:19]} Nge7 {[%emt 0:01:12]} 7. Qd2 {[%emt 0:02:19]} O-O {[%emt 0:01:51]} 8. Nb3 {[%emt 0:03:03]} Bxe3 {[%emt 0:00:47]} 9. Qxe3 {[%emt 0:00:13]} d5 {[%emt 0:01:24]} 10. N1d2 {[%emt 0:00:42]} Ne5 {[%emt 0:11:32]} 11. f3 {[%emt 0:02:24]} dxe4 {[%emt 0:13:02]} 12. Nxe4 {[%emt 0:00:55]} Qe6 {[%emt 0:00:54]} 13. O-O-O {[%emt 0:02:45]} Nf5 {[%emt 0:04:31]} 14. Qc5 {[%emt 0:02:28]} c6 {[%emt 0:06:18]} 15. Kb1 {[%emt 0:03:01]} b6 {[%emt 0:03:12]} 16. Qf2 {[%emt 0:02:33]} c5 {[%emt 0:03:53]} 17. g4 {[%emt 0:01:53]} Nxg4 {[%emt 0:03:17]} 18. fxg4 {[%emt 0:03:23]} Qxe4+ {[%emt 0:00:13]} 19. Bd3 {[%emt 0:00:02]} Qxg4 {[%emt 0:00:16]} 20. Rhg1 {[%emt 0:00:04]} Qh5 {[%emt 0:03:19]} 21. Rdf1 {[%emt 0:00:22]} Rd8 {[%emt 0:09:20]} 22. Bxf5 {[%emt 0:01:02]} Bxf5+ {[%emt 0:00:14]} 23. Ka1 {[%emt 0:02:26]} Bg6 {[%emt 0:02:26]} 24. Nd2 {[%emt 0:01:00]} Rd5 {[%emt 0:08:58]} 25. Nf3 {[%emt 0:02:03]} Rad8 {[%emt 0:00:45]} 26. a3 {[%emt 0:00:24]} Rd3 {[%emt 0:01:09]} 27. Re1 {[%emt 0:02:39]} Qxf3 {[%emt 0:02:02]} 28. Qxf3 {[%emt 0:01:32]} Rxf3 {[%emt 0:00:15]} 29. Re7 {[%emt 0:00:03]} a5 {[%emt 0:02:28]} 30. Rge1 {[%emt 0:00:20]} h6 {[%emt 0:00:46]} 31. Rb7 {[%emt 0:00:12]} Rf6 {[%emt 0:00:19]} 32. Ka2 {[%emt 0:00:20]} c4 {[%emt 0:01:08]} 33. Rc7 {[%emt 0:00:24]} b5 {[%emt 0:00:32]} 34. Rc5 {[%emt 0:00:14]} Rfd6 {[%emt 0:00:20]} 35. Rxb5 {[%emt 0:00:20]} Bc2 {[%emt 0:00:33]} 36. a4 {[%emt 0:00:37]} Bxa4 {[%emt 0:03:01]} 37. Rxa5 {[%emt 0:00:06]} Bb3+ {[%emt 0:00:16]} 38. Ka3 {[%emt 0:00:08]} Rb6 {[%emt 0:00:54]} 39. Ree5 {[%emt 0:00:49]} Rd1 {[%emt 0:01:40]} 40. Reb5 {[%emt 0:00:07]} Ra1+ {[%emt 0:01:00]} 41. Kb4 {[%emt 0:00:07]} Rxa5 {[%emt 0:00:35]} 42. Rxb6 {[%emt 0:00:31]} Ra2 {[%emt 0:01:04]} 43. Rb8+ {[%emt 0:00:56]} Kh7 {[%emt 0:00:17]} 44. Rb7 {[%emt 0:00:15]} f5 {[%emt 0:00:29]} 45. Rb5 {[%emt 0:00:14]} Kg6 {[%emt 0:00:15]} 46. h4 {[%emt 0:00:27]} Rxb2 {[%emt 0:00:35]} 47. Kc5 {[%emt 0:00:17]} Rh2 {[%emt 0:00:20]} 48. Rb6+ {[%emt 0:00:18]} Kh5 {[%emt 0:00:21]} 49. Rb7 {[%emt 0:00:11]} g6 {[%emt 0:00:20]} 50. Kd4 {[%emt 0:00:35]} Rxh4+ {[%emt 0:00:14]} 51. Ke3 {[%emt 0:00:09]} Rh3+ {[%emt 0:00:13]} 52. Kd4 {[%emt 0:00:11]} Rd3+ {[%emt 0:00:32]} 53. Ke5 {[%emt 0:00:30]} Rxc3 {[%emt 0:00:14]} 54. Kf4 {[%emt 0:00:32]} Bc2 {[%emt 0:00:24]} 55. Rc7 {[%emt 0:00:41]} g5+ {[%emt 0:00:13]} 56. Ke5 {[%emt 0:00:08]} f4 {[%emt 0:00:38]} 57. Kd4 {[%emt 0:00:12]} Re3 {[%emt 0:00:50]} 58. Kxc4 {[%emt 0:00:07]} f3 {[%emt 0:01:11]} 59. Kd4 {[%emt 0:00:13]} Re4+ {[%emt 0:00:17]} 60. Kc3 {[%emt 0:00:15]} f2 {[%emt 0:00:16]} 61. Rf7 {[%emt 0:00:25]} Rf4 {[%emt 0:00:09]} 0-1

[Event "Catalan Youth Championship 2024"]
[Site "Cambrils"]
[Date "2024.03.28"]
[Round "9.8"]
[White "Torres Herrera, Guillem"]
[Black "Bru Montoya, Pau"]
[Result "0-1"]
[ECO "D55"]
[WhiteElo "1780"]
[BlackElo "1850"]
[Annotator "NA RC"]
[PlyCount "108"]
[EventDate "2024.03.13"]
[EventType "swiss"]
[EventCountry "ESP"]
[SourceTitle "playchess.com"]
[Source "ChessBase"]
[SourceQuality "1"]
[TimeControl "5400+30"]

1. d4 {[%emt 0:00:10]} Nf6 {[%emt 0:00:09]} 2. Nf3 {[%emt 0:00:21]} d5 {[%emt 0:00:41]} 3. c4 {[%emt 0:02:07]} e6 {[%emt 0:01:03]} 4. Nc3 {[%emt 0:00:39]} Be7 {[%emt 0:01:02]} 5. Bg5 {[%emt 0:01:00]} O-O {[%emt 0:01:18]} 6. e3 {[%emt 0:01:39]} b6 {[%emt 0:00:30]} 7. cxd5 {[%emt 0:01:24]} exd5 {[%emt 0:00:47]} 8. Bd3 {[%emt 0:00:49]} c5 {[%emt 0:01:05]} 9. O-O {[%emt 0:02:04]} Bg4 {[%emt 0:00:52]} 10. Rb1 {[%emt 0:09:49]} Nc6 {[%emt 0:04:38]} 11. Be2 {[%emt 0:04:35]} Be6 {[%emt 0:04:25]} 12. h3 {[%emt 0:08:02]} h6 {[%emt 0:06:53]} 13. Bf4 {[%emt 0:01:53]} Bd6 {[%emt 0:03:56]} 14. Bxd6 {[%emt 0:16:18]} Qxd6 {[%emt 0:00:07]} 15. dxc5 {[%emt 0:00:28]} bxc5 {[%emt 0:01:11]} 16. a3 {[%emt 0:02:09]} Bf5 {[%emt 1:09:53]} 17. Bd3 {[%emt 0:01:24]} Bxd3 {[%emt 0:00:30]} 18. Qxd3 {[%emt 0:00:06]} Ne5 {[%emt 0:00:00]} 19. Qf5 {[%emt 0:08:34]} Nxf3+ {[%emt 0:00:00]} 20. Qxf3 {[%emt 0:00:06]} Qe5 {[%emt 0:00:00]} 21. Rfd1 {[%emt 0:04:29]} Rfd8 {[%emt 0:00:00]} 22. Rd3 {[%emt 0:01:47]} Rab8 {[%emt 0:00:00]} 23. b4 {[%emt 0:08:22]} cxb4 {[%emt 0:00:00]} 24. axb4 {[%emt 0:00:09]} Rbc8 {[%emt 0:00:00]} 25. Ne2 {[%emt 0:01:22]} Rc4 {[%emt 0:00:00]} 26. Nd4 {[%emt 0:03:26]} Rb8 {[%emt 0:00:00]} 27. Rdb3 {[%emt 0:01:27]} Ne4 {[%emt 0:00:00]} 28. R3b2 {[%emt 0:02:05]} Nc3 {[%emt 0:00:00]} 29. Re1 {[%emt 0:01:41]} Rxd4 {[%emt 0:00:00]} 30. Rc1 {[%emt 0:02:06]} Rdxb4 {[%emt 0:00:00]} 31. Rbc2 {[%emt 0:01:10]} Rb1 {[%emt 0:00:00]} 32. g3 {[%emt 0:01:32]} Rxc1+ {[%emt 0:00:00]} 33. Rxc1 {[%emt 0:00:06]} Qe4 {[%emt 0:00:00]} 34. Qxe4 {[%emt 0:01:45]} Nxe4 {[%emt 0:00:00]} 35. Ra1 {[%emt 0:00:07]} Ra8 {[%emt 0:00:00]} 36. Ra5 {[%emt 0:00:07]} Nf6 {[%emt 0:00:00]} 37. Kg2 {[%emt 0:00:20]} Kf8 {[%emt 0:00:00]} 38. h4 {[%emt 0:00:11]} Ke7 {[%emt 0:00:00]} 39. Kf3 {[%emt 0:00:07]} Kd6 {[%emt 0:00:00]} 40. g4 {[%emt 0:00:08]} Kc6 {[%emt 0:00:00]} 41. g5 {[%emt 0:00:10]} hxg5 {[%emt 0:00:00]} 42. hxg5 {[%emt 0:00:10]} Ne4 {[%emt 0:00:00]} 43. g6 {[%emt 0:00:10]} fxg6 {[%emt 0:00:00]} 44. Ra6+ {[%emt 0:00:04]} Kb5 {[%emt 0:00:00]} 45. Rxg6 {[%emt 0:00:06]} a5 {[%emt 0:00:00]} 46. Rxg7 {[%emt 0:00:10]} Nc5 {[%emt 0:00:00]} 47. Rg5 {[%emt 0:17:06]} Kc4 {[%emt 0:00:00]} 48. Ke2 {[%emt 0:00:00]} a4 {[%emt 0:00:00]} 49. Rg1 {[%emt 0:00:00]} a3 {[%emt 0:00:00]} 50. f4 {[%emt 0:00:00]} a2 {[%emt 0:00:00]} 51. f5 {[%emt 0:00:00]} a1=Q {[%emt 0:00:00]} 52. Rxa1 {[%emt 0:00:00]} Rxa1 {[%emt 0:00:00]} 53. f6 {[%emt 0:00:00]} Ra6 {[%emt 0:00:00]} 54. f7 {[%emt 0:00:00]} Rf6 {[%emt 0:00:00]} 0-1

[Event "Catalan Youth Championship 2024"]
[Site "Cambrils"]
[Date "2024.03.28"]
[Round "9.9"]
[White "Prada Villagrasa, Pau Manel"]
[Black "Villa Tornero, Alex"]
[Result "1/2-1/2"]
[ECO "B42"]
[WhiteElo "2103"]
[BlackElo "2329"]
[Annotator "RC"]
[PlyCount "86"]
[EventDate "2024.03.13"]
[EventType "swiss"]
[EventCountry "ESP"]
[SourceTitle "playchess.com"]
[Source "ChessBase"]
[SourceQuality "1"]
[TimeControl "5400+30"]

1. e4 c5 2. Nf3 e6 3. d4 cxd4 4. Nxd4 a6 5. Bd3 Nf6 6. Qe2 d6 7. c4 Qc7 8. O-O Be7 9. Nc3 b6 10. Be3 Bb7 11. Rac1 O-O 12. f4 Nbd7 13. b4 Rfe8 14. Nf3 Rac8 15. Kh1 Qb8 16. a3 Qa8 17. Bd4 Nh5 18. Qe3 {[%emt 1:39:30]} Bd8 19. e5 Bc7 20. Ne4 dxe5 21. fxe5 g6 22. Nfg5 Re7 23. g4 Nxe5 24. Bxe5 Bxe5 25. gxh5 Rd8 26. hxg6 f5 27. gxh7+ Rxh7 28. Nxh7 Rxd3 29. Qg5+ {[%emt 0:05:30]} Kh8 {[%emt 1:45:00]} 30. Nhf6 {[%emt 0:00:30]} Rh3 {[%emt 0:00:30]} 31. Rce1 {[%emt 0:00:30]} Qd8 {[%emt 0:00:30]} 32. Nd5 {[%emt 0:00:30]} Qb8 {[%emt 0:00:30]} 33. Re2 {[%emt 0:00:30]} exd5 {[%emt 0:00:30]} 34. Qxf5 {[%emt 0:00:30]} Rh7 {[%emt 0:00:30]} 35. Qf8+ {[%emt 0:00:30]} Qxf8 {[%emt 0:00:30]} 36. Rxf8+ {[%emt 0:00:30]} Kg7 {[%emt 0:00:30]} 37. Rf7+ {[%emt 0:00:30]} Kxf7 {[%emt 0:00:30]} 38. Ng5+ {[%emt 0:00:30]} Kg6 {[%emt 0:00:30]} 39. Nxh7 {[%emt 0:00:30]} dxc4+ {[%emt 0:00:30]} 40. Kg1 {[%emt 0:00:30]} Bg7 {[%emt 0:00:30]} 41. Re7 {[%emt 0:00:30]} Bf3 {[%emt 0:00:30]} 42. Kf2 {[%emt 0:00:30]} Bh5 {[%emt 0:00:30]} 43. Rxg7+ {[%emt 0:00:30]} Kxg7 {[%emt 0:00:30]} 1/2-1/2

[Event "Catalan Youth Championship 2024"]
[Site "Cambrils"]
[Date "2024.03.28"]
[Round "9.10"]
[White "Alonso Gimenez, Mauro"]
[Black "Dea Ruiz, Jofre"]
[Result "1-0"]
[ECO "B11"]
[WhiteElo "1980"]
[BlackElo "1836"]
[Annotator "RC"]
[PlyCount "79"]
[EventDate "2024.03.13"]
[EventType "swiss"]
[EventCountry "ESP"]
[SourceTitle "playchess.com"]
[Source "ChessBase"]
[SourceQuality "1"]
[TimeControl "5400+30"]

1. e4 {[%emt 0:00:01]} c6 {[%emt 0:00:06]} 2. Nc3 {[%emt 0:00:04]} d5 {[%emt 0:00:16]} 3. Nf3 {[%emt 0:00:04]} dxe4 {[%emt 0:00:21]} 4. Nxe4 {[%emt 0:00:06]} Nf6 {[%emt 0:00:18]} 5. Qe2 {[%emt 0:00:08]} Nxe4 {[%emt 0:00:30]} 6. Qxe4 {[%emt 0:00:04]} Nd7 {[%emt 0:00:47]} 7. Bc4 {[%emt 0:00:09]} Nf6 {[%emt 0:00:29]} 8. Ne5 {[%emt 0:00:36]} e6 {[%emt 0:00:16]} 9. Qe2 {[%emt 0:00:12]} b5 {[%emt 0:00:49]} 10. Bb3 {[%emt 0:00:08]} Qc7 {[%emt 0:01:33]} 11. d4 {[%emt 1:34:28]} Bd6 {[%emt 0:06:14]} 12. O-O {[%emt 0:00:00]} O-O {[%emt 0:06:28]} 13. c3 {[%emt 0:01:00]} a6 {[%emt 0:12:45]} 14. Bc2 {[%emt 0:00:30]} Nd5 {[%emt 0:04:08]} 15. Qd3 {[%emt 0:00:00]} f5 {[%emt 0:01:53]} 16. f4 {[%emt 0:00:00]} c5 {[%emt 0:04:43]} 17. Qe2 {[%emt 0:00:00]} Rf6 {[%emt 0:04:56]} 18. a4 {[%emt 0:00:00]} Rb8 {[%emt 0:10:03]} 19. axb5 axb5 {[%emt 0:00:13]} 20. Bb3 {[%emt 0:00:00]} cxd4 {[%emt 0:04:27]} 21. cxd4 {[%emt 0:00:00]} Bd7 {[%emt 0:10:47]} 22. Bd2 {[%emt 0:00:00]} Rff8 {[%emt 0:29:28]} 23. Rac1 {[%emt 0:04:30]} Qa7 {[%emt 0:00:30]} 24. Bxd5 {[%emt 0:00:30]} exd5 {[%emt 0:00:30]} 25. Qf3 {[%emt 0:00:00]} Bxe5 {[%emt 0:00:00]} 26. Qxd5+ {[%emt 0:00:00]} Kh8 {[%emt 0:00:00]} 27. fxe5 {[%emt 0:00:00]} Rfe8 {[%emt 0:01:30]} 28. Be3 {[%emt 0:00:00]} Be6 {[%emt 0:00:00]} 29. Qf3 {[%emt 0:00:00]} Qd7 {[%emt 0:01:00]} 30. Rcd1 {[%emt 0:00:00]} Rbd8 {[%emt 0:00:00]} 31. Bg5 {[%emt 0:03:30]} Rc8 {[%emt 0:00:00]} 32. d5 {[%emt 0:00:00]} Bg8 {[%emt 0:00:00]} 33. Qxf5 {[%emt 0:00:00]} Qa7+ {[%emt 0:00:00]} 34. Kh1 {[%emt 0:01:30]} Rf8 {[%emt 0:00:00]} 35. Qxf8 {[%emt 0:00:00]} Rxf8 {[%emt 0:00:00]} 36. Rxf8 {[%emt 0:00:00]} h6 {[%emt 0:03:30]} 37. d6 {[%emt 0:00:00]} Qd7 {[%emt 0:00:00]} 38. Re1 {[%emt 0:02:00]} Kh7 {[%emt 0:00:00]} 39. Rxg8 {[%emt 0:00:00]} Kxg8 {[%emt 0:00:00]} 40. e6 {[%emt 0:01:00]} 1-0

[Event "Catalan Youth Championship 2024"]
[Site "Cambrils"]
[Date "2024.03.28"]
[Round "9.11"]
[White "Uber Gracia, Hugo"]
[Black "Ballo Serrano, Jan"]
[Result "1-0"]
[ECO "A17"]
[WhiteElo "2237"]
[BlackElo "1855"]
[Annotator "RC"]
[PlyCount "49"]
[EventDate "2024.03.13"]
[EventType "swiss"]
[EventCountry "ESP"]
[SourceTitle "playchess.com"]
[Source "ChessBase"]
[SourceQuality "1"]
[TimeControl "5400+30"]

1. c4 {[%emt 0:00:03]} e6 {[%emt 0:00:48]} 2. Nf3 {[%emt 0:00:11]} Nf6 {[%emt 0:00:07]} 3. Nc3 {[%emt 0:00:05]} d5 {[%emt 0:00:06]} 4. e3 {[%emt 0:00:08]} b6 {[%emt 0:00:10]} 5. b3 {[%emt 0:00:12]} Bb7 {[%emt 0:00:06]} 6. Bb2 {[%emt 0:00:08]} dxc4 {[%emt 0:00:04]} 7. Bxc4 {[%emt 0:02:56]} a6 {[%emt 0:00:16]} 8. O-O {[%emt 0:03:19]} Nbd7 {[%emt 1:32:53]} 9. d4 {[%emt 0:05:42]} b5 {[%emt 0:00:00]} 10. Be2 {[%emt 0:05:14]} c5 {[%emt 0:00:00]} 11. a4 {[%emt 1:18:02]} cxd4 {[%emt 0:01:30]} 12. Nxd4 {[%emt 0:00:30]} b4 {[%emt 0:00:00]} 13. Nb1 {[%emt 0:00:00]} Nc5 {[%emt 0:01:00]} 14. Nd2 {[%emt 0:00:00]} Nce4 {[%emt 0:00:30]} 15. Nc4 {[%emt 0:01:30]} Nd6 {[%emt 0:00:30]} 16. Ne5 {[%emt 0:00:30]} Be7 17. Ndc6 Bxc6 18. Nxc6 Qb6 19. Bf3 Rc8 20. Bd4 Qb7 21. Na7 Nde4 22. Nxc8 Qxc8 23. Rc1 Qb8 24. Qd3 Nd6 25. Bc6+ {[%emt 0:00:00]} 1-0